[Event "*** SCC Grand Prix: Titled Tuesday Blitz"]
[Site "Chess.com"]
[Date "2020.06.09"]
[Round "7"]
[White "Grandmaster2B"]
[Black "vaishali2001"]
[Result "0-1"]
[WhiteElo "2433"]
[BlackElo "2624"]
[TimeControl "180+1"]
[EndTime "10:19:40 PDT"]
[Termination "vaishali2001 won on time"]

1. e4 {[%clk 0:03:00.9]} 1... c5 {[%clk 0:02:55.5]} 2. Nf3 {[%clk 0:03:00.9]}
2... d6 {[%clk 0:02:54.9]} 3. d4 {[%clk 0:03:01.5]} 3... cxd4 {[%clk 0:02:55.8]}
4. Nxd4 {[%clk 0:03:02.4]} 4... Nf6 {[%clk 0:02:56.1]} 5. Nc3 {[%clk 0:03:02.8]}
5... Nc6 {[%clk 0:02:56.7]} 6. f3 {[%clk 0:03:01.6]} 6... e5 {[%clk 0:02:55.8]}
7. Nb3 {[%clk 0:03:02]} 7... Be7 {[%clk 0:02:54.5]} 8. Be3 {[%clk 0:03:01]} 8...
O-O {[%clk 0:02:54.8]} 9. Qd2 {[%clk 0:03:01.5]} 9... a5 {[%clk 0:02:54.7]} 10.
a4 {[%clk 0:02:57.1]} 10... Be6 {[%clk 0:02:53.4]} 11. Nd5 {[%clk 0:02:57.3]}
11... Bxd5 {[%clk 0:02:13.7]} 12. exd5 {[%clk 0:02:58.2]} 12... Nb4 {[%clk
0:02:14]} 13. c4 {[%clk 0:02:58.1]} 13... Nd7 {[%clk 0:02:09.9]} 14. Be2 {[%clk
0:02:51.6]} 14... f5 {[%clk 0:02:02.4]} 15. O-O {[%clk 0:02:51.3]} 15... Qe8
{[%clk 0:02:03]} 16. Nxa5 {[%clk 0:02:43.9]} 16... Rxa5 {[%clk 0:01:46.7]} 17.
Qxb4 {[%clk 0:02:43.1]} 17... Ra8 {[%clk 0:01:32]} 18. Qd2 {[%clk 0:02:10.1]}
18... Nc5 {[%clk 0:01:10.6]} 19. Bxc5 {[%clk 0:01:38.4]} 19... dxc5 {[%clk
0:01:11.5]} 20. d6 {[%clk 0:01:22.7]} 20... Rd8 {[%clk 0:01:08.8]} 21. Qd5+
{[%clk 0:01:23.2]} 21... Rf7 {[%clk 0:01:08.4]} 22. Qxe5 {[%clk 0:01:16.3]}
22... Bxd6 {[%clk 0:01:04.3]} 23. Qxe8+ {[%clk 0:01:12.2]} 23... Rxe8 {[%clk
0:01:05.2]} 24. Bd3 {[%clk 0:01:07.6]} 24... Be5 {[%clk 0:01:00.9]} 25. Rab1
{[%clk 0:00:59.3]} 25... Bd4+ {[%clk 0:00:56.1]} 26. Kh1 {[%clk 0:00:59.8]}
26... Re3 {[%clk 0:00:53.2]} 27. Bc2 {[%clk 0:00:59.4]} 27... Re2 {[%clk
0:00:51.3]} 28. Bd3 {[%clk 0:00:59]} 28... Rd2 {[%clk 0:00:38.8]} 29. Rfd1
{[%clk 0:00:55]} 29... Rxb2 {[%clk 0:00:39.2]} 30. Rxb2 {[%clk 0:00:54.6]} 30...
Bxb2 {[%clk 0:00:40.1]} 31. f4 {[%clk 0:00:31.2]} 31... Rd7 {[%clk 0:00:33]} 32.
g4 {[%clk 0:00:15.7]} 32... Kf7 {[%clk 0:00:19.2]} 33. gxf5 {[%clk 0:00:12.1]}
33... Kf6 {[%clk 0:00:19.3]} 34. Rb1 {[%clk 0:00:08.1]} 34... Rxd3 {[%clk
0:00:18.9]} 35. Rxb2 {[%clk 0:00:08.6]} 35... Rd7 {[%clk 0:00:14.8]} 36. Rb5
{[%clk 0:00:07.4]} 36... Kxf5 {[%clk 0:00:08.4]} 37. Rxc5+ {[%clk 0:00:07.5]}
37... Kxf4 {[%clk 0:00:08.9]} 38. Kg2 {[%clk 0:00:05.2]} 38... g5 {[%clk
0:00:07.2]} 39. h4 {[%clk 0:00:03.2]} 39... g4 {[%clk 0:00:05.9]} 40. Rd5 {[%clk
0:00:03.2]} 40... Re7 {[%clk 0:00:04.5]} 41. Rd4+ {[%clk 0:00:03.3]} 41... Kf5
{[%clk 0:00:03.7]} 42. Rd5+ {[%clk 0:00:03.9]} 42... Ke4 {[%clk 0:00:03.7]} 43.
Rg5 {[%clk 0:00:03.7]} 43... Kf4 {[%clk 0:00:03.3]} 44. Rd5 {[%clk 0:00:02.4]}
44... Re2+ {[%clk 0:00:03.2]} 45. Kf1 {[%clk 0:00:03]} 45... Rc2 {[%clk
0:00:03.5]} 46. Rd4+ {[%clk 0:00:03.2]} 46... Kf3 {[%clk 0:00:03.8]} 47. Rd3+
{[%clk 0:00:03.3]} 47... Ke4 {[%clk 0:00:04.3]} 48. Rd7 {[%clk 0:00:03.2]} 48...
g3 {[%clk 0:00:03]} 49. Re7+ {[%clk 0:00:02.5]} 49... Kf3 {[%clk 0:00:03.1]} 50.
Rf7+ {[%clk 0:00:02.9]} 50... Kg4 {[%clk 0:00:03.6]} 51. Rg7+ {[%clk 0:00:03.4]}
51... Kh3 {[%clk 0:00:04.1]} 52. h5 {[%clk 0:00:01.7]} 52... g2+ {[%clk
0:00:04]} 0-1

[Event "*** SCC Grand Prix: Titled Tuesday Blitz"]
[Site "Chess.com"]
[Date "2020.06.09"]
[Round "7"]
[White "diablanni"]
[Black "YaWaleriy"]
[Result "1-0"]
[WhiteElo "2334"]
[BlackElo "2209"]
[TimeControl "180+1"]
[EndTime "10:19:41 PDT"]
[Termination "diablanni won by resignation"]

1. e4 {[%clk 0:02:59.6]} 1... e6 {[%clk 0:02:59.4]} 2. d4 {[%clk 0:02:59.2]}
2... d5 {[%clk 0:02:59.9]} 3. Nc3 {[%clk 0:02:57.1]} 3... Nf6 {[%clk 0:02:59.2]}
4. e5 {[%clk 0:02:55.8]} 4... Nfd7 {[%clk 0:02:59.1]} 5. f4 {[%clk 0:02:51.9]}
5... c5 {[%clk 0:02:59.4]} 6. Nf3 {[%clk 0:02:48.8]} 6... Nc6 {[%clk 0:02:59.8]}
7. Be3 {[%clk 0:02:48.2]} 7... cxd4 {[%clk 0:03:00.3]} 8. Nxd4 {[%clk
0:02:47.4]} 8... Bc5 {[%clk 0:03:00.9]} 9. Qd2 {[%clk 0:02:45.7]} 9... O-O
{[%clk 0:03:01.2]} 10. O-O-O {[%clk 0:01:53]} 10... a6 {[%clk 0:02:59.9]} 11.
Qf2 {[%clk 0:01:31]} 11... Bxd4 {[%clk 0:02:57.5]} 12. Bxd4 {[%clk 0:01:29.6]}
12... b5 {[%clk 0:02:57.9]} 13. Be3 {[%clk 0:01:05.3]} 13... b4 {[%clk
0:02:56.2]} 14. Na4 {[%clk 0:01:00.5]} 14... a5 {[%clk 0:02:55.3]} 15. h4 {[%clk
0:00:58.7]} 15... Ba6 {[%clk 0:02:54.5]} 16. h5 {[%clk 0:00:58.1]} 16... Qc7
{[%clk 0:02:33.5]} 17. h6 {[%clk 0:00:43.5]} 17... g6 {[%clk 0:02:33.1]} 18. g4
{[%clk 0:00:43.2]} 18... Rfc8 {[%clk 0:02:16.7]} 19. Kb1 {[%clk 0:00:40.8]}
19... d4 {[%clk 0:01:29.6]} 20. Bxd4 {[%clk 0:00:37.2]} 20... Nxd4 {[%clk
0:01:28.4]} 21. Rxd4 {[%clk 0:00:37.4]} 21... Qc6 {[%clk 0:01:28]} 22. Bg2
{[%clk 0:00:35.4]} 22... Qxa4 {[%clk 0:01:24.2]} 23. Bxa8 {[%clk 0:00:34.6]}
23... Rxa8 {[%clk 0:01:20.6]} 24. Rhd1 {[%clk 0:00:34.1]} 24... Nf8 {[%clk
0:01:15]} 25. f5 {[%clk 0:00:17.3]} 25... Qe8 {[%clk 0:01:01.8]} 26. fxg6 {[%clk
0:00:09.5]} 26... fxg6 {[%clk 0:00:54.3]} 27. Qf6 {[%clk 0:00:09]} 27... Qf7
{[%clk 0:00:54]} 28. Rd8 {[%clk 0:00:08.2]} 28... Rxd8 {[%clk 0:00:51.8]} 29.
Rxd8 {[%clk 0:00:08.5]} 29... Qxf6 {[%clk 0:00:50.8]} 30. exf6 {[%clk
0:00:08.5]} 30... Kf7 {[%clk 0:00:49.3]} 31. g5 {[%clk 0:00:08.6]} 31... Bb5
{[%clk 0:00:39.2]} 32. Rb8 {[%clk 0:00:08.4]} 32... Bd7 {[%clk 0:00:38.1]} 33.
Kc1 {[%clk 0:00:07.9]} 33... e5 {[%clk 0:00:37.7]} 34. Kd2 {[%clk 0:00:08.2]}
34... Ne6 {[%clk 0:00:36.3]} 35. Rb7 {[%clk 0:00:05.7]} 35... Nf8 {[%clk
0:00:25.3]} 36. Rb8 {[%clk 0:00:06]} 36... Ne6 {[%clk 0:00:20.6]} 37. Rb7 {[%clk
0:00:06.2]} 37... Nc5 {[%clk 0:00:21]} 38. Rc7 {[%clk 0:00:06.2]} 38... Ne4+
{[%clk 0:00:16.9]} 39. Ke3 {[%clk 0:00:06.2]} 39... Nxg5 {[%clk 0:00:16.6]} 40.
Rxd7+ {[%clk 0:00:06.6]} 40... Kxf6 {[%clk 0:00:17.1]} 41. Rd5 {[%clk
0:00:06.3]} 41... Nf7 {[%clk 0:00:14.5]} 42. Rxa5 {[%clk 0:00:06.6]} 42... Nxh6
{[%clk 0:00:15]} 43. Ra4 {[%clk 0:00:06.6]} 43... Nf5+ {[%clk 0:00:15.3]} 44.
Kf2 {[%clk 0:00:06.5]} 44... h5 {[%clk 0:00:15]} 45. Rxb4 {[%clk 0:00:06.6]}
45... g5 {[%clk 0:00:15.2]} 46. a4 {[%clk 0:00:06.8]} 46... g4 {[%clk
0:00:13.3]} 47. Rb8 {[%clk 0:00:06.1]} 47... g3+ {[%clk 0:00:12.5]} 48. Kg2
{[%clk 0:00:05.5]} 48... h4 {[%clk 0:00:12.8]} 49. Rg8 {[%clk 0:00:05.8]} 49...
Ne3+ {[%clk 0:00:11.8]} 50. Kh3 {[%clk 0:00:05.9]} 50... Nc4 {[%clk 0:00:09.7]}
51. b3 {[%clk 0:00:05.4]} 51... Ne3 {[%clk 0:00:09]} 52. a5 {[%clk 0:00:05.2]}
52... Nd5 {[%clk 0:00:08.4]} 53. a6 {[%clk 0:00:05.2]} 53... Nb6 {[%clk
0:00:07.7]} 54. c4 {[%clk 0:00:05.6]} 54... Kf5 {[%clk 0:00:07.4]} 55. c5 {[%clk
0:00:06]} 1-0

[Event "*** SCC Grand Prix: Titled Tuesday Blitz"]
[Site "Chess.com"]
[Date "2020.06.09"]
[Round "7"]
[White "maciek_92"]
[Black "David_Paravyan"]
[Result "1-0"]
[WhiteElo "2686"]
[BlackElo "2956"]
[TimeControl "180+1"]
[EndTime "10:19:42 PDT"]
[Termination "maciek_92 won by resignation"]

1. c4 {[%clk 0:02:46]} 1... e5 {[%clk 0:02:59.8]} 2. g3 {[%clk 0:02:45.4]} 2...
Nf6 {[%clk 0:02:58.2]} 3. Nc3 {[%clk 0:02:45.7]} 3... Bb4 {[%clk 0:02:58]} 4.
Bg2 {[%clk 0:02:46.1]} 4... O-O {[%clk 0:02:57.6]} 5. e4 {[%clk 0:02:42.5]} 5...
Bxc3 {[%clk 0:02:58.1]} 6. dxc3 {[%clk 0:02:43.4]} 6... d6 {[%clk 0:02:57]} 7.
Qe2 {[%clk 0:02:38.5]} 7... a5 {[%clk 0:02:49.9]} 8. Nf3 {[%clk 0:02:34.8]} 8...
Bg4 {[%clk 0:02:46]} 9. Be3 {[%clk 0:02:19.3]} 9... Qd7 {[%clk 0:02:40.1]} 10.
h3 {[%clk 0:02:18.6]} 10... Be6 {[%clk 0:02:37.7]} 11. Ng5 {[%clk 0:02:11.8]}
11... Qc6 {[%clk 0:02:34.1]} 12. Nxe6 {[%clk 0:02:10.8]} 12... fxe6 {[%clk
0:02:35]} 13. O-O {[%clk 0:01:52.2]} 13... Nbd7 {[%clk 0:02:34.2]} 14. Rad1
{[%clk 0:01:23.6]} 14... Nc5 {[%clk 0:02:33.8]} 15. f3 {[%clk 0:01:16.9]} 15...
a4 {[%clk 0:02:33.4]} 16. Kh2 {[%clk 0:01:16]} 16... Rf7 {[%clk 0:02:30.4]} 17.
h4 {[%clk 0:01:15.9]} 17... Re8 {[%clk 0:02:27]} 18. Bh3 {[%clk 0:01:14.5]}
18... Kh8 {[%clk 0:02:20.2]} 19. Rd2 {[%clk 0:01:05.1]} 19... Nfd7 {[%clk
0:02:18]} 20. Rb1 {[%clk 0:01:03.8]} 20... Ref8 {[%clk 0:02:15.6]} 21. Bg2
{[%clk 0:01:03]} 21... Kg8 {[%clk 0:01:55.6]} 22. b4 {[%clk 0:01:01.4]} 22...
axb3 {[%clk 0:01:55.4]} 23. axb3 {[%clk 0:01:02.3]} 23... Nf6 {[%clk 0:01:43.3]}
24. Ra2 {[%clk 0:00:56.7]} 24... Qe8 {[%clk 0:01:39]} 25. b4 {[%clk 0:00:52.2]}
25... Na6 {[%clk 0:01:31.5]} 26. Rba1 {[%clk 0:00:33.6]} 26... h6 {[%clk
0:01:29.8]} 27. Ra5 {[%clk 0:00:23.8]} 27... Kh7 {[%clk 0:01:28.3]} 28. c5
{[%clk 0:00:23.3]} 28... dxc5 {[%clk 0:01:27.6]} 29. b5 {[%clk 0:00:23.4]} 29...
Nb8 {[%clk 0:01:28.1]} 30. Bxc5 {[%clk 0:00:18.3]} 30... Rg8 {[%clk 0:01:27.3]}
31. Be3 {[%clk 0:00:17.1]} 31... Nbd7 {[%clk 0:01:17]} 32. Ra7 {[%clk
0:00:16.4]} 32... Qc8 {[%clk 0:01:12.9]} 33. c4 {[%clk 0:00:16.8]} 33... b6
{[%clk 0:01:09.6]} 34. c5 {[%clk 0:00:17.1]} 34... Nxc5 {[%clk 0:01:09.6]} 35.
Bxc5 {[%clk 0:00:17]} 35... bxc5 {[%clk 0:01:10.5]} 36. b6 {[%clk 0:00:17.7]}
36... Qb8 {[%clk 0:00:45.1]} 37. b7 {[%clk 0:00:17.9]} 37... c6 {[%clk
0:00:45.3]} 38. Qa6 {[%clk 0:00:15.4]} 38... Re8 {[%clk 0:00:23.9]} 39. Rb1
{[%clk 0:00:14.7]} 39... Rff8 {[%clk 0:00:02.5]} 40. Ra8 {[%clk 0:00:14.4]}
40... Qd6 {[%clk 0:00:02.9]} 41. Rc8 {[%clk 0:00:04.7]} 41... Nd7 {[%clk
0:00:03]} 42. Qa8 {[%clk 0:00:04.1]} 42... Qe7 {[%clk 0:00:01.2]} 43. Qa6 {[%clk
0:00:02.9]} 43... Qf7 {[%clk 0:00:01.1]} 44. Qxc6 {[%clk 0:00:03.1]} 44... Rd8
{[%clk 0:00:01.4]} 45. Qc7 {[%clk 0:00:03.2]} 45... Qe7 {[%clk 0:00:01.5]} 46.
b8=Q {[%clk 0:00:03.5]} 46... Nxb8 {[%clk 0:00:02]} 47. Qxe7 {[%clk 0:00:03.8]}
47... Rxc8 {[%clk 0:00:02.5]} 48. Qxe6 {[%clk 0:00:04.4]} 48... Nc6 {[%clk
0:00:03.1]} 49. Qc4 {[%clk 0:00:03.7]} 49... Nd4 {[%clk 0:00:03.4]} 50. Rc1
{[%clk 0:00:03.8]} 50... Ra8 {[%clk 0:00:03.4]} 51. f4 {[%clk 0:00:04.3]} 51...
Ra3 {[%clk 0:00:03.5]} 52. Qxc5 {[%clk 0:00:04.5]} 52... Ra2 {[%clk 0:00:02.2]}
53. Qxf8 {[%clk 0:00:04.4]} 53... Nf3+ {[%clk 0:00:02.3]} 54. Kh1 {[%clk
0:00:04.8]} 1-0

[Event "*** SCC Grand Prix: Titled Tuesday Blitz"]
[Site "Chess.com"]
[Date "2020.06.09"]
[Round "7"]
[White "Biranidun"]
[Black "Lenyas66"]
[Result "1-0"]
[WhiteElo "2733"]
[BlackElo "2573"]
[TimeControl "180+1"]
[EndTime "10:19:43 PDT"]
[Termination "Biranidun won by resignation"]

1. e4 {[%clk 0:03:00.9]} 1... e6 {[%clk 0:02:59]} 2. d4 {[%clk 0:03:00.6]} 2...
d5 {[%clk 0:02:59.2]} 3. Nc3 {[%clk 0:03:01.1]} 3... Nf6 {[%clk 0:02:59.5]} 4.
e5 {[%clk 0:03:01.5]} 4... Nfd7 {[%clk 0:02:59.5]} 5. f4 {[%clk 0:03:02.1]} 5...
c5 {[%clk 0:02:59.8]} 6. Nf3 {[%clk 0:03:02.8]} 6... Nc6 {[%clk 0:03:00]} 7. Be3
{[%clk 0:03:03.5]} 7... h6 {[%clk 0:03:00.4]} 8. Qd2 {[%clk 0:03:03.6]} 8... g5
{[%clk 0:03:00.1]} 9. dxc5 {[%clk 0:02:32.3]} 9... gxf4 {[%clk 0:02:58.2]} 10.
Bxf4 {[%clk 0:02:29.1]} 10... Nxc5 {[%clk 0:02:54.9]} 11. O-O-O {[%clk 0:02:24]}
11... Qa5 {[%clk 0:02:45.6]} 12. Kb1 {[%clk 0:02:19.1]} 12... Bg7 {[%clk
0:02:26.5]} 13. a3 {[%clk 0:02:00.9]} 13... Nd7 {[%clk 0:02:26]} 14. Qe1 {[%clk
0:01:51.6]} 14... a6 {[%clk 0:02:13]} 15. Qg3 {[%clk 0:01:29.4]} 15... Bf8
{[%clk 0:02:10.1]} 16. Qe1 {[%clk 0:00:53.5]} 16... Qc7 {[%clk 0:01:46.5]} 17.
Bg3 {[%clk 0:00:45.6]} 17... b5 {[%clk 0:01:39.3]} 18. Nxd5 {[%clk 0:00:43.1]}
18... Qb8 {[%clk 0:01:28]} 19. Nf6+ {[%clk 0:00:39.1]} 19... Nxf6 {[%clk
0:01:26.9]} 20. exf6 {[%clk 0:00:40]} 20... Qb6 {[%clk 0:01:23.9]} 21. Ne5
{[%clk 0:00:37.5]} 21... Nxe5 {[%clk 0:01:20.5]} 22. Qxe5 {[%clk 0:00:38.4]}
22... Bb7 {[%clk 0:01:18.9]} 23. Be2 {[%clk 0:00:28.8]} 23... Rc8 {[%clk
0:01:13.8]} 24. Bh5 {[%clk 0:00:23.7]} 24... Qc6 {[%clk 0:01:11.6]} 25. Rd2
{[%clk 0:00:17.9]} 25... Qe4 {[%clk 0:01:10.7]} 26. Re1 {[%clk 0:00:15.5]} 26...
Qxe5 {[%clk 0:01:01.1]} 27. Rxe5 {[%clk 0:00:16.4]} 27... Rc6 {[%clk 0:01:01.1]}
28. Bf3 {[%clk 0:00:14.1]} 28... Rc7 {[%clk 0:01:00.7]} 29. Rxe6+ {[%clk
0:00:14.1]} 29... fxe6 {[%clk 0:01:00]} 30. Bxc7 {[%clk 0:00:15]} 30... Bxf3
{[%clk 0:00:59.7]} 31. gxf3 {[%clk 0:00:14.3]} 31... Kf7 {[%clk 0:01:00]} 32.
Be5 {[%clk 0:00:13.6]} 32... Kg6 {[%clk 0:00:58.5]} 33. f4 {[%clk 0:00:12.3]}
33... Rh7 {[%clk 0:00:57.5]} 34. Rd8 {[%clk 0:00:11]} 34... Rf7 {[%clk
0:00:57.2]} 35. b4 {[%clk 0:00:09]} 35... a5 {[%clk 0:00:53.9]} 36. c3 {[%clk
0:00:08.7]} 36... axb4 {[%clk 0:00:53.7]} 37. axb4 {[%clk 0:00:09.6]} 37... Kf5
{[%clk 0:00:53.8]} 38. Kc2 {[%clk 0:00:09.4]} 38... h5 {[%clk 0:00:53.2]} 39.
Rb8 {[%clk 0:00:09.2]} 39... Bh6 {[%clk 0:00:52.2]} 40. Rxb5 {[%clk 0:00:06.7]}
40... Bxf4 {[%clk 0:00:52.2]} 41. Bxf4+ {[%clk 0:00:07.3]} 41... Kxf4 {[%clk
0:00:52.6]} 42. Rxh5 {[%clk 0:00:08]} 42... Rxf6 {[%clk 0:00:52.8]} 43. b5
{[%clk 0:00:07.7]} 43... e5 {[%clk 0:00:52.6]} 44. c4 {[%clk 0:00:06.1]} 44...
e4 {[%clk 0:00:52.9]} 45. c5 {[%clk 0:00:05.2]} 45... e3 {[%clk 0:00:50.4]} 46.
Kd3 {[%clk 0:00:05.5]} 46... Re6 {[%clk 0:00:48.8]} 47. Ke2 {[%clk 0:00:05.4]}
47... Ke4 {[%clk 0:00:48.6]} 48. b6 {[%clk 0:00:03.8]} 48... Rg6 {[%clk
0:00:44.7]} 49. Rh4+ {[%clk 0:00:03.7]} 49... Kd5 {[%clk 0:00:44.6]} 50. Rh5+
{[%clk 0:00:03.7]} 50... Kc6 {[%clk 0:00:43.8]} 51. Kxe3 {[%clk 0:00:04]} 51...
Re6+ {[%clk 0:00:43.5]} 52. Kd4 {[%clk 0:00:04.3]} 52... Re1 {[%clk 0:00:42.9]}
53. Rh6+ {[%clk 0:00:04.3]} 53... Kb7 {[%clk 0:00:43.1]} 54. Kd5 {[%clk
0:00:03.5]} 54... Rd1+ {[%clk 0:00:42.6]} 55. Ke6 {[%clk 0:00:03.9]} 55... Kc6
{[%clk 0:00:42.9]} 56. Ke5+ {[%clk 0:00:02.6]} 56... Kxc5 {[%clk 0:00:42.8]} 57.
b7 {[%clk 0:00:03.2]} 57... Rb1 {[%clk 0:00:42.7]} 58. Rh7 {[%clk 0:00:03.3]}
58... Kc6 {[%clk 0:00:42.1]} 59. h4 {[%clk 0:00:03]} 59... Re1+ {[%clk 0:00:41]}
60. Kf6 {[%clk 0:00:02.9]} 60... Rf1+ {[%clk 0:00:41]} 61. Kg5 {[%clk
0:00:03.3]} 61... Rg1+ {[%clk 0:00:40.9]} 62. Kh6 {[%clk 0:00:03.5]} 62... Rb1
{[%clk 0:00:39.8]} 63. h5 {[%clk 0:00:03.9]} 63... Kd6 {[%clk 0:00:39.6]} 64.
Kg6 {[%clk 0:00:04.3]} 64... Ke6 {[%clk 0:00:38.8]} 65. Rc7 {[%clk 0:00:04.3]}
65... Rg1+ {[%clk 0:00:37.4]} 66. Kh7 {[%clk 0:00:04.6]} 66... Rb1 {[%clk
0:00:36.7]} 67. h6 {[%clk 0:00:04.9]} 67... Kf6 {[%clk 0:00:36.7]} 68. Kg8
{[%clk 0:00:05.3]} 68... Rg1+ {[%clk 0:00:34.9]} 69. Kf8 {[%clk 0:00:05.4]}
69... Rb1 {[%clk 0:00:34.4]} 70. h7 {[%clk 0:00:05.7]} 1-0

[Event "*** SCC Grand Prix: Titled Tuesday Blitz"]
[Site "Chess.com"]
[Date "2020.06.09"]
[Round "7"]
[White "Munkhzul_Turmunkh"]
[Black "witcher8"]
[Result "1-0"]
[WhiteElo "2592"]
[BlackElo "2409"]
[TimeControl "180+1"]
[EndTime "10:19:44 PDT"]
[Termination "Munkhzul_Turmunkh won on time"]

1. e4 {[%clk 0:02:59.5]} 1... c6 {[%clk 0:02:59.7]} 2. d4 {[%clk 0:02:58.5]}
2... d5 {[%clk 0:03:00.6]} 3. e5 {[%clk 0:02:57.9]} 3... Bf5 {[%clk 0:03:00]} 4.
Nf3 {[%clk 0:02:57.5]} 4... e6 {[%clk 0:03:00.2]} 5. Be2 {[%clk 0:02:56.7]} 5...
Nd7 {[%clk 0:03:00.5]} 6. O-O {[%clk 0:02:55.8]} 6... h6 {[%clk 0:02:59.3]} 7.
Nbd2 {[%clk 0:02:55.3]} 7... Ne7 {[%clk 0:02:57.3]} 8. Nb3 {[%clk 0:02:54.9]}
8... g5 {[%clk 0:02:41.7]} 9. Ne1 {[%clk 0:02:54.3]} 9... Bg7 {[%clk 0:02:36.2]}
10. Nd3 {[%clk 0:02:49.6]} 10... O-O {[%clk 0:02:34.6]} 11. f4 {[%clk
0:02:47.5]} 11... f6 {[%clk 0:02:34.4]} 12. exf6 {[%clk 0:02:41.4]} 12... Bxf6
{[%clk 0:02:34.5]} 13. fxg5 {[%clk 0:02:36.5]} 13... hxg5 {[%clk 0:02:33.1]} 14.
Be3 {[%clk 0:02:34.8]} 14... e5 {[%clk 0:02:30.2]} 15. dxe5 {[%clk 0:02:31.8]}
15... Nxe5 {[%clk 0:02:29.1]} 16. Nd4 {[%clk 0:02:17.2]} 16... Nxd3 {[%clk
0:02:17.3]} 17. Bxd3 {[%clk 0:02:15.3]} 17... Bxd3 {[%clk 0:02:07.5]} 18. Qxd3
{[%clk 0:02:16.2]} 18... Qd6 {[%clk 0:01:41.2]} 19. Rae1 {[%clk 0:02:07.3]}
19... Rae8 {[%clk 0:01:40.3]} 20. c3 {[%clk 0:01:56.3]} 20... c5 {[%clk
0:01:35.6]} 21. Nf3 {[%clk 0:01:52.5]} 21... g4 {[%clk 0:01:24.8]} 22. Ng5
{[%clk 0:01:48]} 22... Bxg5 {[%clk 0:01:09.6]} 23. Bxg5 {[%clk 0:01:48.9]} 23...
Qg6 {[%clk 0:00:43.9]} 24. Rxf8+ {[%clk 0:01:47.2]} 24... Rxf8 {[%clk 0:00:40]}
25. Qd2 {[%clk 0:01:45.5]} 25... Nc6 {[%clk 0:00:23.5]} 26. Qxd5+ {[%clk
0:01:42.7]} 26... Qf7 {[%clk 0:00:23.2]} 27. Qxc5 {[%clk 0:01:39]} 27... Re8
{[%clk 0:00:20.7]} 28. Rxe8+ {[%clk 0:01:34]} 28... Qxe8 {[%clk 0:00:21.6]} 29.
Qc4+ {[%clk 0:01:32.8]} 29... Kg7 {[%clk 0:00:22.1]} 30. Bd2 {[%clk 0:01:25]}
30... Qg6 {[%clk 0:00:20.6]} 31. Kf2 {[%clk 0:01:11.8]} 31... Ne5 {[%clk
0:00:18.2]} 32. Qc7+ {[%clk 0:01:06.1]} 32... Nf7 {[%clk 0:00:16.9]} 33. Qxb7
{[%clk 0:01:01.3]} 33... Qd3 {[%clk 0:00:16.7]} 34. Be3 {[%clk 0:00:57]} 34...
a5 {[%clk 0:00:16.7]} 35. Bd4+ {[%clk 0:00:52.2]} 35... Kg8 {[%clk 0:00:16.8]}
36. Qc8+ {[%clk 0:00:50.1]} 36... Kh7 {[%clk 0:00:17.2]} 37. Qxg4 {[%clk
0:00:48.6]} 37... Qc2+ {[%clk 0:00:15.3]} 38. Qe2 {[%clk 0:00:47.1]} 38... Qf5+
{[%clk 0:00:15.2]} 39. Qf3 {[%clk 0:00:46.3]} 39... Qc2+ {[%clk 0:00:15.3]} 40.
Kg3 {[%clk 0:00:46.5]} 40... Nh6 {[%clk 0:00:12.4]} 41. Qb7+ {[%clk 0:00:43.3]}
41... Kg6 {[%clk 0:00:10]} 42. Qg7+ {[%clk 0:00:42.8]} 42... Kh5 {[%clk
0:00:10.5]} 43. Qe5+ {[%clk 0:00:11.7]} 43... Kg6 {[%clk 0:00:10.2]} 44. Qf6+
{[%clk 0:00:10.8]} 44... Kh5 {[%clk 0:00:10.5]} 45. Qe5+ {[%clk 0:00:08.7]}
45... Kg6 {[%clk 0:00:10.8]} 46. Qe8+ {[%clk 0:00:05.6]} 46... Kh7 {[%clk
0:00:07.1]} 47. Qe7+ {[%clk 0:00:05.3]} 47... Kg6 {[%clk 0:00:07.4]} 48. Qe6+
{[%clk 0:00:04.3]} 48... Kh5 {[%clk 0:00:06.5]} 49. Qd5+ {[%clk 0:00:03.9]}
49... Kg6 {[%clk 0:00:05.9]} 50. Qc6+ {[%clk 0:00:03.7]} 50... Kh5 {[%clk
0:00:05.6]} 51. Qf3+ {[%clk 0:00:03.5]} 51... Kg6 {[%clk 0:00:05.7]} 52. h4
{[%clk 0:00:03.4]} 1-0